fUST/lending_fUST_20251225
["ID","MTS","AMOUNT","RATE_DAILY","PERIOD"]
[399752507,1766659162279,-500.0,0.00032876,120]
[399752508,1766659162327,-480.97280347,0.00032876,120]
[399752509,1766659162372,-500.0,0.00032876,120]
[399752510,1766659162553,-214.08374516,0.00032876,120]
[399752511,1766659162603,-500.0,0.00032876,120]
[399752512,1766659162647,-500.0,0.00032876,120]
[399752513,1766659162692,-500.0,0.00032876,120]
[399752514,1766659162736,-313.29248233,0.00032876,120]
[399752515,1766659162782,-500.0,0.00032876,120]
[399752516,1766659162826,-500.0,0.00032876,120]
[399752517,1766659162868,-500.0,0.00032876,120]
[399752518,1766659162911,-500.52073714,0.00032876,120]
[399752519,1766659162953,-500.0,0.00032876,120]
[399752520,1766659162996,-500.0,0.00032876,120]
[399752521,1766659163043,-500.0,0.00032876,120]
[399752522,1766659163089,-500.0,0.00032876,120]
[399752523,1766659163137,-516.36440304,0.00032876,120]
[399752524,1766659163186,-500.0,0.00032876,120]
[399752525,1766659163239,-473.90469452,0.00032876,120]
[399752526,1766659163294,-500.0,0.00032876,120]
[399752527,1766659163350,-500.0,0.00032876,120]
[399752528,1766659163402,-481.33768582,0.00032876,120]
[399752529,1766659163453,-500.0,0.00032876,120]
[399752530,1766659163501,-155.15639122,0.00032876,120]
[399752531,1766659163548,-500.0,0.00032876,120]
[399752532,1766659163595,-606.77437578,0.00032876,120]
[399752533,1766659163644,-500.0,0.00032876,120]
[399752534,1766659163694,-434.37933898,0.00032876,120]
[399752535,1766659163745,-501.73056042,0.00032876,120]
[399752536,1766659163806,-500.0,0.00032876,120]
[399752537,1766659163869,-500.0,0.00032876,120]
[399752538,1766659163925,-262.42388089,0.00032876,120]
[399752539,1766659163981,-528.96210677,0.00032876,120]
[399752540,1766659164035,-500.82344838,0.00032876,120]
[399752541,1766659164091,-500.81380614,0.00032876,120]
[399752542,1766659164148,-500.0,0.00032876,120]
[399752543,1766659164205,-500.0,0.00032876,120]
[399752544,1766659164261,-481.4037926,0.00032876,120]
[399752545,1766659164314,-523.86027957,0.00032876,120]
[399752546,1766659164367,-500.0,0.00032876,120]
[399752547,1766659164417,-178.09301949,0.00032876,120]
[399752548,1766659164469,-500.0,0.00032876,120]
[399752549,1766659164516,-453.78665156,0.00032876,120]
[399752550,1766659164561,-527.35375531,0.00032876,120]
[399752551,1766659164606,-500.0,0.00032876,120]
[399752552,1766659164655,-161.54900072,0.00032876,120]
[399752553,1766659164703,-232.9266142,0.00032876,120]
[399752554,1766659164750,-500.0,0.00032876,120]
[399752555,1766659164797,-315.69299271,0.00032876,120]
[399752556,1766659164845,-500.0,0.00032876,120]
[399752557,1766659164894,-500.0,0.00032876,120]
[399752558,1766659164944,-256.34260749,0.00032876,120]
[399752559,1766659164995,-500.0,0.00032876,120]
[399752560,1766659165047,-500.0,0.00032876,120]
[399752561,1766659165102,-500.0,0.00032876,120]
[399752562,1766659165152,-501.4516115,0.00032876,120]
[399752563,1766659165202,-500.0,0.00032876,120]
[399752564,1766659165254,-500.0,0.00032876,120]
[399752565,1766659165307,-500.0,0.00032876,120]
[399752566,1766659165356,-317.37355752,0.00032876,120]
[399752567,1766659165407,-500.0,0.00032876,120]
[399752568,1766659165462,-500.0,0.00032876,120]
[399752569,1766659165514,-500.0,0.00032876,120]
[399752570,1766659165565,-500.0,0.00032876,120]
[399752571,1766659165614,-500.0,0.00032876,120]
[399752572,1766659165661,-500.0,0.00032876,120]
[399752573,1766659165709,-507.43126526,0.00032876,120]
[399752574,1766659165756,-500.0,0.00032876,120]
[399752575,1766659165803,-500.0,0.00032876,120]
[399752576,1766659165850,-500.0,0.00032876,120]
[399752577,1766659165892,-500.0,0.00032876,120]
[399752578,1766659165935,-500.0,0.00032876,120]
[399752579,1766659165979,-500.0,0.00032876,120]
[399752580,1766659166025,-500.0,0.00032876,120]
[399752581,1766659166070,-500.0,0.00032876,120]
[399752582,1766659166119,-500.0,0.00032876,120]
[399752583,1766659166170,-334.70232335,0.00032876,120]
[399752584,1766659166222,-500.0,0.00032876,120]
[399752585,1766659166275,-501.13068739,0.00032876,120]
[399752586,1766659166323,-500.0,0.00032876,120]
[399752587,1766659166383,-500.0,0.00032876,120]
[399752588,1766659166440,-379.45308603,0.00032876,120]
[399752589,1766659166494,-500.0,0.00032876,120]
[399752590,1766659166548,-500.31732864,0.00032876,120]
[399752591,1766659166601,-500.0,0.00032876,120]
[399752592,1766659166651,-419.67015114,0.00032876,120]
[399752593,1766659166697,-500.0,0.00032876,120]
[399752594,1766659166742,-488.13211686,0.00032876,120]
[399752595,1766659167055,-464.28367076,0.00032876,120]
[399752596,1766659167112,-500.0,0.00032876,120]
[399752597,1766659167167,-397.61236516,0.00032876,120]
[399752598,1766659167220,-554.51208687,0.00032876,120]
[399752599,1766659167273,-524.33740488,0.00032876,120]
[399752600,1766659167327,-500.0,0.00032876,120]
[399752601,1766659167379,-354.98000385,0.00032876,120]
[399752602,1766659167435,-500.0,0.00032876,120]
[399752603,1766659167488,-501.53717292,0.00032876,120]
[399752604,1766659167535,-500.0,0.00032876,120]
[399752605,1766659167580,-430.41869872,0.00032876,120]
[399752606,1766659167629,-500.0,0.00032876,120]
[399752607,1766659167677,-156.54441117,0.00032876,120]
[399752608,1766659167726,-500.0,0.00032876,120]
[399752609,1766659167775,-196.63293321,0.00032876,120]
[399752610,1766659167823,-500.0,0.00032876,120]
[399752611,1766659167871,-500.0,0.00032876,120]
[399752612,1766659167918,-500.0,0.00032876,120]
[399752613,1766659167967,-500.66782117,0.00032876,120]
[399752614,1766659168014,-500.0,0.00032876,120]
[399752615,1766659168062,-500.0,0.00032876,120]
[399752616,1766659168110,-500.0,0.00032876,120]
[399752617,1766659168157,-500.0,0.00032876,120]
[399752618,1766659168203,-500.0,0.00032876,120]
[399752619,1766659168249,-500.0,0.00032876,120]
[399752620,1766659168295,-500.0,0.00032876,120]
[399752621,1766659168339,-511.82544708,0.00032876,120]
[399752622,1766659168388,-500.0,0.00032876,120]
[399752623,1766659168435,-501.87400621,0.00032876,120]
[399752624,1766659168481,-367.57,0.00032876,120]
[399752625,1766659168528,-500.4287691,0.00032876,120]
[399752626,1766659168572,-592.58207249,0.00032876,120]
[399752627,1766659168618,-500.0,0.00032876,120]
[399752628,1766659168663,-500.0,0.00032876,120]
[399752629,1766659168707,-635.79203842,0.00032876,120]
[399752630,1766659168754,-611.57,0.00032876,120]
[399752631,1766659168799,-611.57,0.00032876,120]
[399752632,1766659168842,-611.57,0.00032876,120]
[399752633,1766659168886,-611.57,0.00032876,120]
[399752634,1766659168935,-611.57,0.00032876,120]
[399752635,1766659168977,-611.57,0.00032876,120]
[399752636,1766659169020,-611.57,0.00032876,120]
[399752637,1766659169065,-611.57,0.00032876,120]
[399752638,1766659169109,-611.57,0.00032876,120]
[399752639,1766659169152,-502.00577771,0.00032876,120]
[399752640,1766659169197,-611.57,0.00032876,120]
[399752641,1766659169241,-500.0,0.00032876,120]
[399752642,1766659169284,-611.57,0.00032876,120]
[399752643,1766659169325,-611.57,0.00032876,120]
[399752644,1766659169367,-348.09740521,0.00032876,120]
[399752645,1766659169411,-1050.6,0.00032876,120]
[399752646,1766659169457,-611.57,0.00032876,120]
[399752647,1766659169498,-1050.6,0.00032876,120]
[399752648,1766659169540,-611.57,0.00032876,120]
[399752649,1766659169582,-1050.6,0.00032876,120]
[399752650,1766659169628,-611.57,0.00032876,120]
[399752651,1766659169675,-1050.6,0.00032876,120]
[399752652,1766659169721,-611.57,0.00032876,120]
[399752653,1766659169766,-1050.6,0.00032876,120]
[399752654,1766659169811,-611.57,0.00032876,120]
[399752655,1766659169855,-1050.6,0.00032876,120]
[399752656,1766659169901,-611.57,0.00032876,120]
[399752657,1766659169945,-1050.6,0.00032876,120]
[399752658,1766659169989,-611.57,0.00032876,120]
[399752659,1766659170033,-1050.6,0.00032876,120]
[399752660,1766659170078,-500.23410262,0.00032876,120]
[399752661,1766659170177,-611.57,0.00032876,120]
[399752662,1766659170234,-1050.6,0.00032876,120]
[399752663,1766659170288,-611.57,0.00032876,120]
[399752664,1766659170335,-1050.6,0.00032876,120]
[399752665,1766659170380,-611.57,0.00032876,120]
[399752666,1766659170424,-1050.6,0.00032876,120]
[399752667,1766659170468,-611.57,0.00032876,120]
[399752668,1766659170511,-1050.6,0.00032876,120]
[399752669,1766659170550,-611.76349383,0.00032876,120]
[399752670,1766659170589,-1050.6,0.00032876,120]
[399752671,1766659170629,-1050.6,0.00032876,120]
[399752672,1766659170673,-1050.6,0.00032876,120]
[399752673,1766659170715,-1050.6,0.00032876,120]
[399752674,1766659170756,-1050.6,0.00032876,120]
[399752675,1766659170796,-1050.6,0.00032876,120]
[399752676,1766659170836,-500.0,0.00032876,120]
[399752677,1766659170877,-1050.6,0.00032876,120]
[399752678,1766659170917,-500.0,0.00032876,120]
[399752679,1766659170958,-1050.6,0.00032876,120]
[399752680,1766659170999,-243.61513333,0.00032876,120]
[399752681,1766659171043,-1050.6,0.00032876,120]
[399752682,1766659171086,-1050.6,0.00032876,120]
[399752683,1766659171129,-1050.6,0.00032876,120]
[399752684,1766659171174,-1050.78895876,0.00032876,120]
[399752685,1766659171220,-501.2767701,0.00032876,120]
[399752686,1766659171271,-500.0,0.00032876,120]
[399752687,1766659171319,-525.4428984,0.00032876,120]
[399752688,1766659171366,-500.0,0.00032876,120]
[399752689,1766659171416,-500.0,0.00032876,120]
[399752690,1766659171473,-500.0,0.00032876,120]
[399752691,1766659171526,-191.85825405,0.00032876,120]
[399752692,1766659171580,-500.0,0.00032876,120]
[399752693,1766659171643,-500.0,0.00032876,120]
[399752694,1766659171721,-500.0,0.00032876,120]
[399752695,1766659171796,-500.0,0.00032876,120]
[399752696,1766659171854,-500.0,0.00032876,120]
[399752697,1766659171911,-500.0,0.00032876,120]
[399752698,1766659171965,-500.0,0.00032876,120]
[399752699,1766659172016,-500.0,0.00032876,120]
[399752700,1766659172065,-500.0,0.00032876,120]
[399752701,1766659172110,-500.0,0.00032876,120]
[399752702,1766659172154,-500.0,0.00032876,120]
[399752703,1766659172199,-503.05999691,0.00032876,120]
[399752704,1766659172244,-500.0,0.00032876,120]
[399752705,1766659172291,-155.77214915,0.00032876,120]
[399752706,1766659172341,-500.0,0.00032876,120]
[399752707,1766659172391,-500.0,0.00032876,120]
[399752708,1766659172443,-559.45338828,0.00032876,120]
[399752709,1766659172495,-501.62025204,0.00032876,120]
[399752710,1766659172544,-500.0,0.00032876,120]
[399752711,1766659172591,-527.32604922,0.00032876,120]
[399752712,1766659172636,-500.0,0.00032876,120]
[399752713,1766659172681,-351.5378357,0.00032876,120]
[399752714,1766659172723,-502.91211969,0.00032876,120]
[399752715,1766659172764,-500.53705101,0.00032876,120]
[399752716,1766659172804,-419.62868534,0.00032876,120]
[399752717,1766659172845,-500.0,0.00032876,120]
[399752718,1766659172888,-469.20461556,0.00032876,120]
[399752719,1766659172928,-500.0,0.00032876,120]
[399752720,1766659172971,-500.0,0.00032876,120]
[399752721,1766659173016,-500.0,0.00032876,120]
[399752722,1766659173066,-531.01620054,0.00032876,120]
[399752723,1766659173114,-500.846291,0.00032876,120]
[399752724,1766659173161,-563.45112683,0.00032876,120]
[399752725,1766659173211,-508.02843639,0.00032876,120]
[399752726,1766659173263,-500.0,0.00032876,120]
[399752727,1766659173316,-500.0,0.00032876,120]
[399752728,1766659173370,-500.0,0.00032876,120]
[399752729,1766659173425,-193.33505981,0.00032876,120]
[399752730,1766659173480,-500.0,0.00032876,120]
[399752731,1766659173526,-500.0,0.00032876,120]
[399752732,1766659173571,-525.78700355,0.00032876,120]
[399752733,1766659173619,-500.0,0.00032876,120]
[399752734,1766659173667,-448.7458281,0.00032876,120]
[399752735,1766659173717,-501.06705259,0.00032876,120]
[399752736,1766659173764,-500.08344654,0.00032876,120]
[399752737,1766659173811,-500.0,0.00032876,120]
[399752738,1766659173860,-500.0,0.00032876,120]
[399752739,1766659173908,-434.18060886,0.00032876,120]
[399752740,1766659173950,-501.30794493,0.00032876,120]
[399752741,1766659173996,-501.68966327,0.00032876,120]
[399752742,1766659174044,-460.4,0.00032876,120]
[399752743,1766659174091,-267.6793066,0.00032876,120]
[399752744,1766659174131,-500.0,0.00032876,120]
[399752745,1766659174176,-305.62064327,0.00032876,120]
[399752746,1766659174221,-500.0,0.00032876,120]
[399752747,1766659174268,-433.54925329,0.00032876,120]
[399752748,1766659174317,-500.0,0.00032876,120]
[399752749,1766659174364,-500.0,0.00032876,120]
[399752750,1766659174411,-189.90304579,0.00032876,120]
[399752751,1766659174467,-500.0,0.00032876,120]
[399752752,1766659174520,-500.0,0.00032876,120]
[399752753,1766659174566,-442.57976179,0.00032876,120]
[399752754,1766659174609,-500.0,0.00032876,120]
[399752755,1766659174653,-163.91336683,0.00032876,120]
[399752756,1766659174704,-500.0,0.00032876,120]
[399752757,1766659174888,-298.56742612,0.00032876,120]
[399752758,1766659174951,-500.463617,0.00032876,120]
[399752759,1766659175014,-609.77,0.00032876,120]
[399752760,1766659175076,-609.77,0.00032876,120]
[399752761,1766659175127,-500.0,0.00032876,120]
[399752762,1766659175178,-609.77,0.00032876,120]
[399752763,1766659175228,-500.0,0.00032876,120]
[399752764,1766659175280,-609.77,0.00032876,120]
[399752765,1766659175325,-500.0,0.00032876,120]
[399752766,1766659175381,-609.77,0.00032876,120]
[399752767,1766659175428,-154.55267876,0.00032876,120]
[399752768,1766659175472,-609.77,0.00032876,120]
[399752769,1766659175514,-500.65494361,0.00032876,120]
[399752770,1766659175558,-609.77,0.00032876,120]
[399752771,1766659175601,-609.77,0.00032876,120]
[399752772,1766659175644,-609.77,0.00032876,120]
[399752773,1766659175688,-609.77,0.00032876,120]
[399752774,1766659175734,-609.77,0.00032876,120]
[399752775,1766659175776,-609.77,0.00032876,120]
[399752776,1766659175819,-609.77,0.00032876,120]
[399752777,1766659175862,-609.77,0.00032876,120]
[399752778,1766659175904,-609.77,0.00032876,120]
[399752779,1766659175946,-609.77,0.00032876,120]
[399752780,1766659175995,-609.77,0.00032876,120]
[399752781,1766659176043,-609.77,0.00032876,120]
[399752782,1766659176091,-609.77,0.00032876,120]
[399752783,1766659176138,-609.77,0.00032876,120]
[399752784,1766659176192,-609.77,0.00032876,120]
[399752785,1766659176247,-609.77,0.00032876,120]
[399752786,1766659176301,-501.30468016,0.00032876,120]
[399752787,1766659176354,-609.77,0.00032876,120]
[399752788,1766659176412,-609.8977346,0.00032876,120]
[399752789,1766659176472,-500.0,0.00032876,120]
[399752790,1766659176529,-266.91288845,0.00032876,120]
[399752791,1766659176584,-584.08120674,0.00032876,120]
[399752792,1766659176634,-321.92145319,0.00032876,120]
[399752793,1766659176685,-500.64536195,0.00032876,120]
[399752794,1766659176735,-500.0,0.00032876,120]
[399752795,1766659176789,-589.12163005,0.00032876,120]
[399752796,1766659176839,-500.66721665,0.00032876,120]
[399752797,1766659176886,-500.0,0.00032876,120]
[399752798,1766659176931,-268.2161186,0.00032876,120]
[399752799,1766659176977,-512.09112022,0.00032876,120]
[399752800,1766659177021,-500.0,0.00032876,120]
[399752801,1766659177067,-604.75288124,0.00032876,120]
[399752803,1766659177112,-468.63824637,0.00032876,120]
[399752804,1766659177159,-500.0,0.00032876,120]
[399752805,1766659177205,-500.0,0.00032876,120]
[399752806,1766659177251,-279.69824286,0.00032876,120]
[399752807,1766659177295,-500.0,0.00032876,120]
[399752808,1766659177342,-172.29712744,0.00032876,120]
[399752809,1766659177391,-501.10501864,0.00032876,120]
[399752810,1766659177444,-500.0,0.00032876,120]
[399752811,1766659177490,-500.0,0.00032876,120]
[399752812,1766659177542,-500.0,0.00032876,120]
[399752813,1766659177588,-315.35390156,0.00032876,120]
[399752814,1766659177632,-500.0,0.00032876,120]
[399752815,1766659177677,-500.0,0.00032876,120]
[399752816,1766659177720,-500.0,0.00032876,120]
[399752817,1766659177762,-500.0,0.00032876,120]
[399752818,1766659177805,-500.0,0.00032876,120]
[399752819,1766659177847,-500.46760722,0.00032876,120]
[399752820,1766659177890,-500.0,0.00032876,120]
[399752821,1766659177933,-500.0,0.00032876,120]
[399752822,1766659177975,-500.0,0.00032876,120]
[399752823,1766659178020,-500.0,0.00032876,120]
[399752824,1766659178065,-500.0,0.00032876,120]
[399752825,1766659178112,-500.0,0.00032876,120]
[399752826,1766659178162,-500.0,0.00032876,120]
[399752827,1766659178210,-191.82861671,0.00032876,120]
[399752828,1766659178256,-500.0,0.00032876,120]
[399752829,1766659178303,-598.26789324,0.00032876,120]
[399752830,1766659178356,-500.0,0.00032876,120]
[399752831,1766659178402,-500.0,0.00032876,120]
[399752832,1766659178447,-500.0,0.00032876,120]
[399752833,1766659178494,-500.0,0.00032876,120]
[399752834,1766659178538,-500.0,0.00032876,120]
[399752835,1766659178582,-500.0,0.00032876,120]
[399752836,1766659178628,-500.0,0.00032876,120]
[399752837,1766659178675,-390.20140414,0.00032876,120]
[399752838,1766659178721,-487.41619566,0.00032876,120]
[399752839,1766659178766,-501.17420375,0.00032876,120]
[399752840,1766659178813,-503.3833016,0.00032876,120]
[399752841,1766659178857,-500.0,0.00032876,120]
[399752842,1766659178905,-156.2121779,0.00032876,120]
[399752843,1766659179257,-500.0,0.00032876,120]
[399752844,1766659179312,-451.20771684,0.00032876,120]
[399752845,1766659179364,-500.59403273,0.00032876,120]
[399752846,1766659179431,-500.0,0.00032876,120]
[399752847,1766659179485,-493.10089983,0.00032876,120]
[399752848,1766659179527,-500.0,0.00032876,120]
[399752849,1766659179568,-500.0,0.00032876,120]
[399752850,1766659179610,-443.6237028,0.00032876,120]
[399752851,1766659179655,-500.0,0.00032876,120]
[399752852,1766659179700,-421.39577053,0.00032876,120]
[399752853,1766659179744,-500.0,0.00032876,120]
[399752854,1766659179786,-175.81312549,0.00032876,120]
[399752855,1766659179828,-324.07253058,0.00032876,120]
[399752856,1766659179870,-480.13289195,0.00032876,120]
[399752857,1766659179912,-500.0,0.00032876,120]
[399752858,1766659179954,-200.63914716,0.00032876,120]
[399752859,1766659179997,-501.61133945,0.00032876,120]
[399752860,1766659180046,-500.0,0.00032876,120]
[399752861,1766659180097,-500.0,0.00032876,120]
[399752862,1766659180151,-500.0,0.00032876,120]
[399752863,1766659180207,-500.0,0.00032876,120]
[399752864,1766659180260,-276.19981532,0.00032876,120]
[399752865,1766659180310,-355.21701858,0.00032876,120]
[399752866,1766659180359,-500.0,0.00032876,120]
[399752868,1766659180410,-333.89021026,0.00032876,120]
[399752869,1766659180461,-500.0,0.00032876,120]
[399752870,1766659180510,-500.0,0.00032876,120]
[399752871,1766659180552,-500.0,0.00032876,120]
[399752872,1766659180593,-440.80783159,0.00032876,120]
[399752873,1766659180637,-617.41303698,0.00032876,120]
[399752874,1766659180679,-500.0,0.00032876,120]
[399752875,1766659180721,-500.0,0.00032876,120]
[399752876,1766659180762,-484.97035451,0.00032876,120]
[399752877,1766659180802,-441.15461461,0.00032876,120]
[399752878,1766659180843,-500.0,0.00032876,120]
[399752879,1766659180883,-500.0,0.00032876,120]
[399752880,1766659180923,-578.69,0.00032876,120]
[399752881,1766659180965,-500.0,0.00032876,120]
[399752882,1766659181008,-578.69,0.00032876,120]
[399752883,1766659181058,-500.0,0.00032876,120]
[399752884,1766659181106,-578.69,0.00032876,120]
[399752885,1766659181156,-500.0,0.00032876,120]
[399752886,1766659181207,-578.69,0.00032876,120]
[399752887,1766659181255,-500.0,0.00032876,120]
[399752888,1766659181303,-578.69,0.00032876,120]
[399752889,1766659181348,-500.0,0.00032876,120]
[399752890,1766659181394,-578.69,0.00032876,120]
[399752891,1766659181436,-195.74330717,0.00032876,120]
[399752892,1766659181482,-179.74046969,0.00032876,120]
[399752893,1766659181526,-578.69,0.00032876,120]
[399752894,1766659181570,-578.69,0.00032876,120]
[399752895,1766659181614,-578.69,0.00032876,120]
[399752896,1766659181657,-578.69,0.00032876,120]
[399752897,1766659181701,-578.69,0.00032876,120]
[399752898,1766659181745,-578.69,0.00032876,120]
[399752899,1766659181793,-578.69,0.00032876,120]
[399752900,1766659181838,-505.02654241,0.00032876,120]
[399752901,1766659181881,-578.69,0.00032876,120]
[399752902,1766659181925,-578.69,0.00032876,120]
[399752903,1766659181969,-578.69,0.00032876,120]
[399752904,1766659182012,-578.69,0.00032876,120]
[399752905,1766659182054,-578.69,0.00032876,120]
[399752906,1766659182100,-578.69,0.00032876,120]
[399752907,1766659182144,-578.69,0.00032876,120]
[399752908,1766659182186,-578.69,0.00032876,120]
[399752909,1766659182227,-578.69,0.00032876,120]
[399752910,1766659182333,-578.69,0.00032876,120]
[399752911,1766659182384,-509.60698017,0.00032876,120]
[399752912,1766659182435,-578.82270097,0.00032876,120]
[399752913,1766659182480,-500.0,0.00032876,120]
[399752914,1766659182524,-223.66184246,0.00032876,120]
[399752915,1766659182565,-265.88380477,0.00032876,120]
[399752916,1766659182608,-500.0,0.00032876,120]
[399752917,1766659182658,-481.95406138,0.00032876,120]
[399752918,1766659182707,-500.0,0.00032876,120]
[399752919,1766659182757,-500.0,0.00032876,120]
[399752920,1766659182803,-500.0,0.00032876,120]
[399752921,1766659182847,-500.0,0.00032876,120]
[399752922,1766659182891,-237.42790482,0.00032876,120]
[399752923,1766659182938,-500.0,0.00032876,120]
[399752924,1766659182983,-500.0,0.00032876,120]
[399752925,1766659183027,-618.49226686,0.00032876,120]
[399752926,1766659183070,-500.0,0.00032876,120]
[399752927,1766659183112,-277.73059495,0.00032876,120]
[399752928,1766659183157,-500.0,0.00032876,120]
[399752929,1766659183205,-500.0,0.00032876,120]
[399752930,1766659183252,-500.0,0.00032876,120]
[399752931,1766659183296,-500.27919792,0.00032876,120]
[399752932,1766659183340,-500.0,0.00032876,120]
[399752933,1766659183385,-500.0,0.00032876,120]
[399752934,1766659183434,-501.46526121,0.00032876,120]
[399752935,1766659183482,-500.0,0.00032876,120]
[399752936,1766659183525,-224.961718,0.00032876,120]
[399752937,1766659183570,-500.22413272,0.00032876,120]
[399752938,1766659183617,-500.0,0.00032876,120]
[399752939,1766659183663,-500.0,0.00032876,120]
[399752940,1766659183710,-500.0,0.00032876,120]
[399752941,1766659183754,-500.0,0.00032876,120]
[399752942,1766659183798,-500.0,0.00032876,120]
[399752943,1766659183843,-500.0,0.00032876,120]
[399752944,1766659183886,-500.0,0.00032876,120]
[399752945,1766659183929,-500.0,0.00032876,120]
[399752946,1766659183975,-500.0,0.00032876,120]
[399752947,1766659184020,-500.0,0.00032876,120]
[399752948,1766659184064,-500.0,0.00032876,120]
[399752949,1766659184108,-294.39168979,0.00032876,120]
[399752950,1766659184154,-500.0,0.00032876,120]
[399752951,1766659184203,-500.0,0.00032876,120]
[399752952,1766659184252,-500.0,0.00032876,120]
[399752953,1766659184302,-500.0,0.00032876,120]
[399752954,1766659184354,-500.0,0.00032876,120]
[399752955,1766659184408,-500.0,0.00032876,120]
[399752956,1766659184463,-500.0,0.00032876,120]
[399752957,1766659184513,-500.0,0.00032876,120]
[399752958,1766659184561,-500.0,0.00032876,120]
[399752959,1766659184607,-500.0,0.00032876,120]
[399752960,1766659184656,-477.31301989,0.00032876,120]
[399752962,1766659184704,-500.0,0.00032876,120]
[399752963,1766659184751,-500.0,0.00032876,120]
[399752964,1766659184797,-500.0,0.00032876,120]
[399752965,1766659184840,-501.53785292,0.00032876,120]
[399752966,1766659184884,-500.0,0.00032876,120]
[399752967,1766659184931,-500.0,0.00032876,120]
[399752968,1766659184981,-500.0,0.00032876,120]
[399752969,1766659185033,-500.51902264,0.00032876,120]
[399752970,1766659185085,-500.0,0.00032876,120]
[399752971,1766659185132,-500.0,0.00032876,120]
[399752972,1766659185180,-500.0,0.00032876,120]
[399752973,1766659185227,-423.99039153,0.00032876,120]
[399752974,1766659185276,-500.0,0.00032876,120]
[399752975,1766659185328,-500.0,0.00032876,120]
[399752976,1766659185376,-500.0,0.00032876,120]
[399752977,1766659185426,-500.0,0.00032876,120]
[399752978,1766659185479,-500.0,0.00032876,120]
[399752979,1766659185525,-500.0,0.00032876,120]
[399752980,1766659185570,-338.50646315,0.00032876,120]
[399752981,1766659185614,-500.0,0.00032876,120]
[399752982,1766659185657,-500.0,0.00032876,120]
[399752983,1766659185714,-542.13556993,0.00032876,120]
[399752984,1766659185763,-500.0,0.00032876,120]
[399752985,1766659185811,-309.98076879,0.00032876,120]
[399752986,1766659185855,-500.0,0.00032876,120]
[399752987,1766659185898,-1928.46,0.00032876,120]
[399752988,1766659185940,-500.0,0.00032876,120]
[399752989,1766659185985,-1928.46,0.00032876,120]
[399752990,1766659186033,-271.88010088,0.00032876,120]
[399752991,1766659186081,-1928.46,0.00032876,120]
[399752992,1766659186135,-1928.46,0.00032876,120]
[399752993,1766659186190,-1928.46,0.00032876,120]
[399752994,1766659186242,-1928.46,0.00032876,120]
[399752995,1766659186296,-1928.46,0.00032876,120]
[399752996,1766659186347,-500.0,0.00032876,120]
[399752997,1766659186402,-1928.46,0.00032876,120]
[399752998,1766659186457,-558.22764111,0.00032876,120]
[399752999,1766659186512,-1928.46,0.00032876,120]
[399753000,1766659186568,-500.0,0.00032876,120]
[399753001,1766659186622,-1928.46,0.00032876,120]
[399753002,1766659186673,-481.31980451,0.00032876,120]
[399753003,1766659186724,-1928.46,0.00032876,120]
[399753004,1766659186774,-1928.46,0.00032876,120]
[399753005,1766659186822,-1928.46,0.00032876,120]
[399753006,1766659186872,-1928.46,0.00032876,120]
[399753007,1766659187056,-1928.46,0.00032876,120]
[399753008,1766659187111,-1928.46,0.00032876,120]
[399753009,1766659187162,-1928.46,0.00032876,120]